fUSD/lending_fUSD_20240929
["ID","MTS","AMOUNT","RATE_DAILY","PERIOD"]
[339413304,1727596725340,164.5,0.00013918,30]
[339413305,1727596725375,1192.85,0.00021999,120]
[339413306,1727596725641,1192.85,0.00021999,120]
[339413307,1727596725922,1192.85,0.00021999,120]
[339413308,1727596726206,1192.85,0.00021999,120]
[339413309,1727596726466,1192.85,0.00021999,120]
[339413310,1727596726769,1192.85,0.00021999,120]
[339413312,1727596727065,1192.94002837,0.00021999,120]
[339413314,1727596794647,160.76,9.9e-05,2]
[339413316,1727596832152,150.0,0.00021098,120]
[339413317,1727596843508,500.0,0.00021999,120]
[339413318,1727596843800,500.0,0.00021999,120]
[339413319,1727596844084,500.0,0.00021999,120]
[339413320,1727596844358,500.0,0.00021999,120]
[339413321,1727596844620,500.0,0.00021999,120]
[339413322,1727596844977,500.0,0.00021999,120]
[339413323,1727596845301,500.0,0.00021999,120]
[339413324,1727596845578,500.0,0.00021999,120]
[339413325,1727596845845,500.0,0.00021999,120]
[339413326,1727596846108,500.0,0.00021999,120]
[339413327,1727596846374,500.0,0.00021999,120]
[339413328,1727596846637,500.0,0.00021999,120]
[339413329,1727596846918,500.0,0.00021999,120]
[339413330,1727596847180,500.0,0.00021999,120]
[339413331,1727596847528,500.0,0.00021999,120]
[339413332,1727596847877,500.0,0.00021999,120]
[339413333,1727596848153,500.0,0.00021999,120]
[339413334,1727596848758,500.0,0.00021999,120]
[339413335,1727596849031,500.0,0.00021999,120]
[339413336,1727596849481,478.56,0.00021999,120]
[339413337,1727596849522,-300.0,9.917e-05,2]
[339413338,1727596849543,-8275.849122,9.918e-05,2]
[339413339,1727596874939,1932.568027,9.868e-05,2]
[339413340,1727596875774,158.91,9.589e-05,2]
[339413357,1727596891097,150.0,0.00019403,120]
[339413358,1727596891286,500.0,0.00021999,120]
[339413359,1727596891548,500.0,0.00021999,120]
[339413360,1727596891870,500.0,0.00021999,120]
[339413361,1727596892503,497.29008628,0.00021999,120]
[339413363,1727596952858,686.55,8.219e-05,2]
[339413364,1727596958177,470.80242738,0.00021999,120]
[339413365,1727596965782,500.0,0.00021999,120]
[339413366,1727596966046,500.0,0.00021999,120]
[339413368,1727596966312,500.0,0.00021999,120]
[339413369,1727596966598,500.0,0.00021999,120]
[339413370,1727596966871,500.0,0.00021999,120]
[339413371,1727596967149,500.0,0.00021999,120]
[339413372,1727596967419,288.40094403,0.00021999,120]
[339413374,1727597054619,176.07,7.905e-05,2]
[339413375,1727597063718,250.0,9.881e-05,2]
[339413376,1727597105797,150.0,9.888e-05,2]
[339413377,1727597114026,500.0,0.00021999,120]
[339413378,1727597114410,500.0,0.00021999,120]
[339413379,1727597114942,594.07,0.00021999,120]
[339413380,1727597116535,150.0,9.888e-05,2]
[339413381,1727597123692,150.0,9.888e-05,2]
[339413382,1727597125575,292.38079082,9.888e-05,2]
[339413383,1727597136332,271.39998586,9.888e-05,2]
[339413384,1727597172889,2605.77,9.637e-05,2]
[339413386,1727597191725,500.0,0.00021999,120]
[339413387,1727597192042,500.0,0.00021999,120]
[339413388,1727597192345,500.0,0.00021999,120]
[339413389,1727597192647,500.0,0.00021999,120]
[339413390,1727597192929,500.0,0.00021999,120]
[339413391,1727597193548,500.0,0.00021999,120]
[339413392,1727597193825,502.65505674,0.00021999,120]
[339413393,1727597195551,905.31,9.64e-05,2]
[339413394,1727597202594,24015.4545142,0.00015,30]
[339413395,1727597224808,1587.87,9.65e-05,2]
[339413396,1727597267281,481.95,9.65e-05,2]
[339413397,1727597275604,77250.5906741,0.00015,30]
[339413398,1727597294033,164.5,0.00013918,30]
[339413399,1727597311110,150.0,0.00019759,120]
[339413400,1727597311269,222.0,0.00015,30]
[339413401,1727597333170,250.0,9.642e-05,2]
[339413404,1727597369553,500.0,9.663e-05,2]
[339413405,1727597371084,150.0,0.00020742,120]
[339413408,1727597397749,500.0,0.00021999,120]
[339413409,1727597398014,157.3328077,0.00021999,120]
[339413410,1727597418267,176.57,9.589e-05,2]
[339413421,1727597431803,-1614.36,9.91e-05,2]
[339413422,1727597431812,-9168.20741229,9.928e-05,2]
[339413423,1727597431821,-150.0,9.928e-05,2]
[339413424,1727597431830,-778.71,9.946e-05,2]
[339413425,1727597431839,-150.0,9.969e-05,2]
[339413426,1727597431849,-150.0,0.0001001,2]
[339413427,1727597431858,-200.0,0.00010021,2]
[339413428,1727597431866,-150.0,0.0001005,2]
[339413429,1727597431875,-499.99,0.0001005,2]
[339413430,1727597431885,-500.0,0.00010068,2]
[339413431,1727597431894,-500.0,0.00010068,2]
[339413432,1727597431903,-1000.0,0.00010068,2]
[339413433,1727597431912,-150.0,0.00010091,2]
[339413434,1727597431921,-61239.48,0.00010091,2]
[339413435,1727597431930,-150.0,0.00010132,2]
[339413436,1727597431939,-150.0,0.00010173,2]
[339413437,1727597431949,-150.0,0.00010213,2]
[339413438,1727597431959,-179.26,0.00010214,2]
[339413439,1727597431968,-150.0,0.00010254,2]
[339413440,1727597431977,-150.0,0.00010295,2]
[339413441,1727597431987,-150.0,0.00010335,2]
[339413442,1727597431997,-1000.0,0.00010342,2]
[339413443,1727597432006,-150.0,0.00010376,2]
[339413444,1727597432017,-150.0,0.00010417,2]
[339413445,1727597432026,-150.0,0.00010457,2]
[339413446,1727597432035,-686.55,0.00010475,2]
[339413447,1727597432044,-150.0,0.00010498,2]
[339413448,1727597432054,-150.0,0.00010539,2]
[339413449,1727597432063,-827.0,0.00010567,2]
[339413450,1727597432072,-150.0,0.00010579,2]
[339413451,1727597432082,-150.0,0.00010579,2]
[339413452,1727597432093,-150.0,0.0001062,2]
[339413453,1727597432102,-150.0,0.00010661,2]
[339413454,1727597432111,-150.0,0.00010701,2]
[339413455,1727597432121,-150.0,0.00010742,2]
[339413456,1727597432130,-150.0,0.00010783,2]
[339413457,1727597432140,-150.0,0.00010824,2]
[339413458,1727597432150,-481.95,0.00010856,2]
[339413459,1727597432159,-150.0,0.00010864,2]
[339413460,1727597432171,-474.67356308,0.00010877,2]
[339413461,1727597432180,-6309.42137716,0.00010882,2]
[339413462,1727597432190,-3292.3351223,0.00010892,2]
[339413463,1727597432202,-509.57797845,0.00010892,2]
[339413464,1727597432214,-9423.99800782,0.00010892,2]
[339413465,1727597432225,-276.08889143,0.00010892,2]
[339413466,1727597432235,-223.91110857,0.00010892,2]
[339413467,1727597432252,-571.52115498,0.00010892,2]
[339413468,1727597434211,-352.56773645,0.00010892,2]
[339413469,1727597434221,-2809.63226355,0.00010892,2]
[339413470,1727597434233,-3062.36773645,0.00010892,2]
[339413471,1727597434244,-150.0,0.00010892,2]
[339413472,1727597434255,-981.195,0.00010892,2]
[339413473,1727597434266,-527.176,0.00010899,2]
[339413474,1727597434276,-155.381,0.00010899,2]
[339413475,1727597434286,-209.837,0.000109,2]
[339413476,1727597434295,-1000.0,0.000109,2]
[339413477,1727597434305,-8658.6573,0.000109,2]
[339413478,1727597434314,-1000.0,0.000109,2]
[339413479,1727597434324,-171.2682,0.000109,2]
[339413480,1727597434334,-4546.94216423,0.000109,2]
[339413481,1727597434344,-622.3174,0.000109,2]
[339413482,1727597434354,-2967.996,0.000109,2]
[339413483,1727597434365,-3724.8363,0.000109,2]
[339413484,1727597434375,-1640.34081954,0.000109,2]
[339413485,1727597434391,-3059.83918046,0.000109,2]
[339413486,1727597434400,-1854.0164,0.000109,2]
[339413487,1727597434410,-2117.5066,0.000109,2]
[339413488,1727597434420,-419.5691,0.000109,2]
[339413489,1727597434429,-166.02661025,0.000109,2]
[339413490,1727597434440,-4480.25232062,0.000109,2]
[339413491,1727597434449,-163.90590921,0.000109,2]
[339413492,1727597434459,-1014.0,0.000109,2]
[339413493,1727597434470,-167.69038639,0.000109,2]
[339413494,1727597434480,-205.33653576,0.000109,2]
[339413495,1727597434491,-332.75527609,0.000109,2]
[339413496,1727597434502,-1231.85132041,0.000109,2]
[339413497,1727597434513,-311.84172578,0.000109,2]
[339413498,1727597434527,-833.36001832,0.000109,2]
[339413499,1727597434538,-796.89416303,0.000109,2]
[339413500,1727597434549,-1714.72611778,0.000109,2]
[339413501,1727597437821,-303.16003,0.000109,2]
[339413502,1727597437833,-315.0,0.000109,2]
[339413503,1727597437845,-1060.65948633,0.000109,2]
[339413504,1727597437875,-2248.50199106,0.000109,2]
[339413505,1727597437884,-150.0,0.00010905,2]
[339413506,1727597437894,-500.0,0.00010912,2]
[339413507,1727597437903,-150.0,0.00010946,2]
[339413508,1727597437913,-166.42,0.00010959,2]
[339413509,1727597437922,-250.0,0.00010959,2]
[339413510,1727597437932,-1500.0,0.00010959,2]
[339413511,1727597437942,-155.2,0.00010959,2]
[339413512,1727597437951,-275.92631341,0.00010973,2]
[339413513,1727597437961,-500.0,0.00010973,2]
[339413514,1727597437971,-500.0,0.00010973,2]
[339413515,1727597437980,-157.94662144,0.00010986,2]
[339413516,1727597437990,-150.0,0.00010986,2]
[339413517,1727597438001,-152.3,0.0001099,2]
[339413518,1727597438010,-1000.0,0.00010999,2]
[339413519,1727597438020,-1742.92237013,0.00010999,3]
[339413520,1727597438030,-1000.0,0.00010999,2]
[339413521,1727597438041,-1000.0,0.00010999,2]
[339413522,1727597438051,-500.0,0.00010999,2]
[339413523,1727597438061,-500.0,0.00010999,2]
[339413524,1727597438070,-186.63853403,0.00010999,2]
[339413525,1727597438079,-500.0,0.00010999,2]
[339413526,1727597438088,-251.41082261,0.00011,2]
[339413527,1727597438098,-8594.45158542,0.00011,2]
[339413528,1727597438110,-1362.07271568,0.00011,2]
[339413529,1727597438121,-703.20536157,0.00011,2]
[339413530,1727597438133,-740.34726879,0.00011,2]
[339413531,1727597438145,-56478.55312075,0.00011,2]
[339413532,1727597438156,-430.48305069,0.00011,2]
[339413533,1727597438169,-67554.72629143,0.00011,2]
[339413534,1727597438181,-3007.22553722,0.00011,2]
[339413535,1727597438192,-12680.68088358,0.00011,2]
[339413536,1727597438204,-23883.51749648,0.00011,2]
[339413537,1727597438215,-6454.10800005,0.00011,2]
[339413538,1727597438226,-1954.87549614,0.00011,2]
[339413539,1727597438402,-2222.34255927,0.00011,2]
[339413540,1727597438413,-334.74992247,0.00011,2]
[339413541,1727597438424,-2193.60921575,0.00011,2]
[339413542,1727597438435,-1130.278736,0.00011,2]
[339413543,1727597438447,-27128.65124824,0.00011,2]
[339413544,1727597438457,-937.85312511,0.00011,2]
[339413545,1727597438469,-1363.28313491,0.00011,2]
[339413546,1727597438479,-1335.85121143,0.00011,2]
[339413547,1727597438491,-2076.34305428,0.00011,2]
[339413548,1727597438502,-1248.82727493,0.00011,2]
[339413549,1727597438513,-19066.24339577,0.00011,2]
[339413550,1727597438526,-23406.47410261,0.00011,2]
[339413560,1727597439787,-17763.29560768,0.00011,2]
[339413561,1727597439842,-187080.7967188,0.00011,2]
[339413562,1727597439854,-24133.98717669,0.00011,2]
[339413563,1727597439865,-1092.27862809,0.00011,2]
[339413564,1727597439878,-5380.48614854,0.00011,2]
[339413565,1727597439888,-63394.02948113,0.00011,2]
[339413566,1727597439899,-13120.0,0.00011,2]
[339413567,1727597439911,-29574.57782437,0.00011,2]
[339413568,1727597439923,-603.55887143,0.00011,2]
[339413569,1727597439934,-538867.72621972,0.00011,2]
[339413570,1727597439953,-59687.47526315,0.00011,2]
[339413571,1727597439964,-7180.06767896,0.00011,2]
[339413572,1727597439975,-583.86285183,0.00011,2]
[339413573,1727597440006,-0.01404834,0.00011,2]
[339413574,1727597440018,-137085.91014143,0.00011,2]
[339413575,1727597440030,-2409.35153101,0.00011,2]
[339413576,1727597440082,-923.08443828,0.00011,2]
[339413577,1727597440093,-1103.41846136,0.00011,2]
[339413578,1727597440104,-1608.91586877,0.00011,2]
[339413579,1727597441375,-389.925,0.00011,2]
[339413580,1727597441386,-734.58570894,0.00011,2]
[339413581,1727597441398,-24929.11631104,0.00011,2]
[339413582,1727597441434,-467.84357261,0.00011,2]
[339413583,1727597441445,-576.99,0.00011,2]
[339413584,1727597441458,-3116.76815216,0.00011,2]
[339413681,1727597442808,-1593.8,0.00011,2]
[339413693,1727597442916,-10104.29795583,0.00011,2]
[339413723,1727597443250,-14.4257903,0.00011,2]
[339413724,1727597443264,-1293700.59078504,0.00011,2]
[339413846,1727597445820,-840.0,0.00010976,2]
[339413847,1727597445830,-13865.0,0.00011,2]
[339413848,1727597445875,-6632.2395837,0.00011,2]
[339413849,1727597445982,-1748.03062998,0.00011,2]
[339413850,1727597446038,-12768.47907355,0.00011,2]
[339413852,1727597474640,742.17,9.04e-05,2]
[339413853,1727597485468,196.1047,9.827e-05,2]
[339413854,1727597491018,1000.0,8.972e-05,2]
[339413855,1727597491239,150.0,0.00021666,120]
[339413858,1727597600347,200.0,0.00022,120]
[339413862,1727597851042,164.5,0.00013918,30]
[339413863,1727597911068,150.0,0.00019445,120]
[339413868,1727597954496,183.63,9.589e-05,2]
[339413869,1727597996674,817.51,8.219e-05,2]
[339413870,1727598029731,152.50692616,8e-05,2]
[339413871,1727598042232,150.0,9.9e-05,2]
[339413874,1727598077912,23890.0,9.805e-05,2]
[339413878,1727598109488,389.35,9.854e-05,2]
[339413879,1727598201343,200.0,0.00020758,120]
[339413880,1727598233429,52119.84572309,0.00015,30]
[339413881,1727598271223,5882.79785396,0.00015,30]
[339413888,1727598302455,150.0,9.888e-05,2]
[339413889,1727598312802,155.85555883,9.888e-05,2]
[339413890,1727598368028,179.26,9.883e-05,2]
[339413891,1727598370168,500.0,0.00021999,120]
[339413892,1727598370598,500.27927127,0.00021999,120]
[339413893,1727598391425,150.0,0.00020599,120]
[339413894,1727598396907,164.5,0.00013918,30]
[339413895,1727598397994,250.0,9.883e-05,2]
[339413896,1727598493349,374.088873,9.876e-05,2]
[339413898,1727598595747,180.1,9.589e-05,2]
[339413907,1727598631120,150.0,0.00020247,120]
[339413913,1727598631955,-311.77,9.918e-05,2]
[339413914,1727598631965,-188.12959605,9.926e-05,2]
[339413919,1727598632072,-61.87040395,9.926e-05,2]
[339413920,1727598632081,-226.41,9.951e-05,2]
[339413921,1727598632091,-2181.96257102,9.952e-05,2]
[339413922,1727598632101,-495.79885347,9.952e-05,2]
[339413923,1727598632112,-2987.59874654,9.952e-05,2]
[339413924,1727598632123,-421.84814249,9.952e-05,2]
[339413925,1727598632132,-1119.75,9.99e-05,2]
[339413926,1727598632142,-500.0,0.0001,2]
[339413927,1727598632151,-794.7304345,0.00010016,2]
[339413928,1727598632162,-205.2695655,0.00010016,2]
[339413929,1727598632171,-316.17374668,0.00010068,2]
[339413930,1727598632183,-683.82625332,0.00010068,2]
[339413931,1727598632192,-500.0,0.00010068,2]
[339413932,1727598632201,-500.0,0.00010068,2]
[339413933,1727598632210,-19.78477913,0.00010142,2]
[339413934,1727598632221,-280.21522087,0.00010142,2]
[339413935,1727598632230,-2364.18477914,0.00010143,2]
[339413936,1727598632241,-287.37338502,0.00010143,2]
[339413937,1727598632253,-4411.92248121,0.00010143,2]
[339413938,1727598632264,-1096.56812033,0.00010143,2]
[339413939,1727598632275,-3980.9612343,0.00010143,2]
[339413940,1727598632284,-497.7,0.00010161,2]
[339413941,1727598632293,-923.21,0.00010166,2]
[339413942,1727598632302,-499.99,0.00010166,2]
[339413943,1727598632312,-2096.52,0.00010166,2]
[339413944,1727598632321,-1000.0,0.00010342,2]
[339413945,1727598632330,-817.51,0.00010474,2]
[339413946,1727598632343,-1930.0,0.000107,2]
[339413947,1727598632352,-525.167,0.0001084,2]
[339413948,1727598632361,-157.005,0.0001084,2]
[339413949,1727598632370,-816.17935072,0.0001089,2]
[339413950,1727598632379,-150.0,0.00010898,2]
[339413951,1727598632389,-926.35901166,0.00010899,2]
[339413952,1727598632398,-926.35901161,0.00010899,2]
[339413953,1727598632408,-926.35901161,0.00010899,2]
[339413954,1727598632417,-926.35901161,0.00010899,2]
[339413955,1727598632427,-926.35901161,0.00010899,2]
[339413956,1727598632436,-926.35901161,0.00010899,2]
[339413957,1727598632446,-926.35901161,0.00010899,2]
[339413958,1727598632455,-926.35901161,0.00010899,2]
[339413959,1727598632465,-926.35901161,0.000109,2]
[339413960,1727598632474,-11086.11122616,0.000109,2]
[339413961,1727598632489,-842.86362775,0.000109,2]
[339413962,1727598632500,-777.495996,0.000109,2]
[339413963,1727598632512,-562.56728795,0.000109,2]
[339413964,1727598632522,-4842.93689012,0.000109,2]
[339413981,1727598638076,-211.13337202,0.000109,2]
[339413982,1727598638086,-439.8493,0.000109,2]
[339413983,1727598638098,-275.27113888,0.000109,2]
[339413984,1727598638109,-1332.05846622,0.000109,2]
[339413985,1727598638187,-5800.5602949,0.000109,2]
[339413986,1727598638196,-6031.2183,0.000109,2]
[339413987,1727598638205,-9512.4141,0.000109,2]
[339413988,1727598638215,-5850.2933,0.000109,2]
[339413989,1727598638223,-162.78018815,0.000109,2]
[339413990,1727598638232,-171.7976515,0.000109,2]
[339413991,1727598638242,-926.35901161,0.000109,2]
[339413992,1727598638251,-163.9059092,0.000109,2]
[339413993,1727598638260,-643.36009821,0.000109,2]
[339413994,1727598638269,-500.0,0.00010912,2]
[339413995,1727598638278,-167.5,0.00010959,2]
[339413996,1727598638286,-1389.55,0.00010959,2]
[339413997,1727598638295,-250.0,0.00010959,2]
[339413998,1727598638304,-500.0,0.00010973,2]
[339413999,1727598638314,-500.0,0.00010973,2]
[339414000,1727598638323,-186.49,0.0001099,2]
[339414001,1727598638332,-13716.8072394,0.00010997,2]
[339414002,1727598638341,-1000.0,0.00010999,2]
[339414003,1727598638352,-1000.0,0.00010999,2]
[339414004,1727598638361,-2000.0,0.00010999,2]
[339414005,1727598638370,-21020.58551706,0.00010999,2]
[339414006,1727598638379,-500.0,0.00010999,2]
[339414007,1727598638388,-500.0,0.00010999,2]
[339414008,1727598638397,-500.0,0.00010999,2]
[339414009,1727598638406,-300.0,0.00010999,2]
[339414010,1727598638416,-216.37390165,0.00010999,2]
[339414011,1727598638425,-522.0,0.00011,2]
[339414012,1727598638434,-201.12865809,0.00011,2]
[339414013,1727598638444,-137228.99132903,0.00011,2]
[339414014,1727598638455,-623.44199861,0.00011,2]
[339414015,1727598638466,-3733.51914188,0.00011,2]
[339414016,1727598638477,-599.055,0.00011,2]
[339414021,1727598640043,-362.572002,0.00011,2]
[339414022,1727598640054,-482.23079436,0.00011,2]
[339414023,1727598640065,-3257.921871,0.00011,2]
[339414024,1727598640076,-896.82497611,0.00011,2]
[339414025,1727598640087,-383.57266039,0.00011,2]
[339414026,1727598640099,-5771.00299894,0.00011,2]
[339414027,1727598640110,-14473.21707664,0.00011,2]
[339414028,1727598640121,-631.80673865,0.00011,2]
[339414029,1727598640133,-264.4956,0.00011,2]
[339414030,1727598640143,-1449.02410384,0.00011,2]
[339414031,1727598640154,-867.74640596,0.00011,2]
[339414032,1727598640165,-1146.80056203,0.00011,2]
[339414033,1727598640176,-809.0606916,0.00011,2]
[339414034,1727598640187,-2150.90411538,0.00011,2]
[339414035,1727598640198,-1467.29741007,0.00011,2]
[339414036,1727598640209,-1221.18105363,0.00011,2]
[339414037,1727598640220,-1023.25,0.00011,2]
[339414038,1727598640231,-3274.14906833,0.00011,2]
[339414039,1727598640244,-37533.08178596,0.00011,2]
[339414040,1727598640255,-1950.58610927,0.00011,2]
[339414041,1727598640267,-5578.94510997,0.00011,2]
[339414042,1727598640288,-3017.256,0.00011,2]
[339414043,1727598640300,-185.55527156,0.00011,2]
[339414044,1727598640309,-500.0,0.00011,2]
[339414045,1727598640321,-500.0,0.00011,2]
[339414046,1727598640331,-2194.86956244,0.00011,2]
[339414047,1727598640342,-5291.6,0.00011,2]
[339414049,1727598640355,-2078.23743716,0.00011,2]
[339414051,1727598640366,-147723.24453998,0.00011,2]
[339414053,1727598640378,-428.25,0.00011,2]
[339414226,1727598643055,-528.85885242,0.00011,2]
[339414227,1727598643067,-1243.9391314,0.00011,2]
[339414228,1727598643079,-997.62972712,0.00011,2]
[339414229,1727598643089,-2020.54450368,0.00011,2]
[339414230,1727598643100,-571.59772232,0.00011,2]
[339414231,1727598643112,-738.1314692,0.00011,2]
[339414232,1727598643123,-446.91429972,0.00011,2]
[339414233,1727598643136,-305984.75587685,0.00011,2]
[339414234,1727598643149,-3087.7847,0.00011,2]
[339414235,1727598643160,-303.6635629,0.00011,2]
[339414236,1727598643171,-340.68338463,0.00011,2]
[339414237,1727598643183,-3712.68824854,0.00011,2]
[339414238,1727598643194,-16535.4946002,0.00011,2]
[339414239,1727598643206,-947.40643778,0.00011,2]
[339414240,1727598643217,-1921.83458173,0.00011,2]
[339414241,1727598643232,-7724.67253932,0.00011,2]
[339414242,1727598643244,-25249.11904088,0.00011,2]
[339414243,1727598643256,-384.34999965,0.00011,2]
[339414253,1727598646000,-1675.2,0.00011,2]
[339414254,1727598646013,-25773.32341151,0.00011,2]
[339414255,1727598646024,-344.849717,0.00011,2]
[339414256,1727598646035,-595.06691331,0.00011,2]
[339414257,1727598646056,-24500.0,0.00011,2]
[339414258,1727598646067,-302.0,0.00011,2]
[339414259,1727598646078,-33176.91259541,0.00011,2]
[339414260,1727598646090,-957.52,0.00011,2]
[339414261,1727598646122,-2631.74826984,0.00011,2]
[339414262,1727598646133,-265630.74037856,0.00011,2]
[339414263,1727598646145,-174057.3795909,0.00011,2]
[339414264,1727598646158,-173564.3292124,0.00011,2]
[339414265,1727598646169,-18012.73823,0.00011,2]
[339414266,1727598646181,-41234.6096,0.00011,2]
[339414267,1727598646192,-15837.43126967,0.00011,2]
[339414268,1727598646203,-11980.70439447,0.00011,2]
[339414269,1727598646215,-68335.58805646,0.00011,2]
[339414270,1727598646226,-1600.0,0.00011,2]
[339414271,1727598646237,-5114.97780404,0.00011,2]
[339414272,1727598646249,-611.967,0.00011,2]
[339414273,1727598646260,-896.1847932,0.00011,2]
[339414274,1727598646271,-1794.36314389,0.00011,2]
[339414275,1727598646283,-14993.26991951,0.00011,2]
[339414276,1727598646295,-110673.88268203,0.00011,2]
[339414277,1727598646308,-1668.32821834,0.00011,2]
[339414278,1727598646319,-9309.10477623,0.00011,2]
[339414279,1727598646331,-371.88291753,0.00011,2]
[339414280,1727598646342,-1324.8,0.00011,2]
[339414281,1727598646355,-3337.89376783,0.00011,2]
[339414283,1727598667160,500.0,0.00021999,120]
[339414284,1727598667430,500.0,0.00021999,120]
[339414285,1727598667798,362.76119693,0.00021999,120]
[339414286,1727598670625,900.0,8.972e-05,2]
[339414287,1727598671399,1100.0,8.972e-05,2]
[339414290,1727598692852,500.0,0.00021999,120]
[339414291,1727598693099,401.25015908,0.00021999,120]
[339414303,1727598811242,150.0,0.00021789,120]
[339414304,1727598829537,500.0,0.00021999,120]
[339414305,1727598829811,500.0,0.00021999,120]
[339414306,1727598830071,500.0,0.00021999,120]
[339414307,1727598830377,500.0,0.00021999,120]
[339414308,1727598830660,357.2,0.00021999,120]
[339414310,1727598854208,1046.28,8.597e-05,2]
[339414313,1727598931652,150.0,0.00020639,120]
[339414314,1727598991791,150.0,0.00020182,120]
[339414315,1727599003245,164.5,0.00013918,30]
[339414316,1727599020260,500.0,0.00021999,120]
[339414317,1727599020530,500.0,0.00021999,120]
[339414318,1727599020786,500.0,0.00021999,120]
[339414319,1727599021048,500.0,0.00021999,120]
[339414320,1727599021309,617.43198349,0.00021999,120]
[339414323,1727599150441,177.45,9.589e-05,2]
[339414324,1727599231795,150.0,0.00021264,120]
[339414328,1727599398296,1033.73,8.219e-05,2]
[339414343,1727599471550,150.0,0.00019308,120]
[339414345,1727599569102,250.0,9.894e-05,2]
[339414346,1727599577408,250.0,9.777e-05,2]
[339414347,1727599644296,164.5,0.00013918,30]
[339414353,1727599789499,173.84,9.589e-05,2]
[339414362,1727599832247,-398.16,9.947e-05,2]
[339414364,1727599832257,-600.0,9.985e-05,2]
[339414366,1727599832267,-417.27626018,0.00010061,2]
[339414371,1727599832305,-14.05373982,0.00010061,2]
[339414373,1727599832314,-500.0,0.00010068,2]
[339414375,1727599832323,-500.0,0.00010068,2]
[339414376,1727599832332,-534.21761333,0.00010093,2]
[339414377,1727599832344,-465.78238667,0.00010093,2]
[339414378,1727599832354,-23900.0,0.00010113,2]
[339414379,1727599832363,-363.91,0.00010318,2]
[339414380,1727599832372,-900.0,0.00010342,2]
[339414381,1727599832381,-1100.0,0.00010342,2]
[339414382,1727599832390,-10000.0,0.0001045,2]
[339414383,1727599832399,-1033.73,0.00010476,2]
[339414384,1727599832409,-150.0,0.00010898,2]
[339414385,1727599832419,-158.356,0.00010899,2]
[339414386,1727599832428,-525.74,0.00010899,2]
[339414387,1727599832437,-754.36762999,0.00010899,2]
[339414388,1727599832446,-318.17952542,0.00010899,2]
[339414389,1727599832457,-1413.23731861,0.00010899,2]
[339414390,1727599832469,-20955.7508,0.000109,2]
[339414391,1727599832478,-272.8281,0.000109,2]
[339414392,1727599832488,-162.78018815,0.000109,2]
[339414393,1727599832498,-4656.57037027,0.000109,2]
[339414394,1727599832507,-162.40780799,0.000109,2]
[339414395,1727599832516,-1000.0,0.000109,2]
[339414396,1727599832525,-500.0,0.00010911,2]
[339414397,1727599832534,-500.0,0.00010912,2]
[339414398,1727599832546,-500.0,0.00010912,2]
[339414399,1727599832555,-6362.6,0.00010959,2]
[339414400,1727599832565,-161.36,0.00010959,2]
[339414401,1727599832574,-250.0,0.00010959,2]
[339414402,1727599832583,-500.0,0.00010973,2]
[339414403,1727599832593,-158.45,0.00010988,2]
[339414404,1727599832602,-158.45,0.00010988,2]
[339414405,1727599832611,-158.45,0.0001099,2]
[339414406,1727599832620,-158.45,0.0001099,2]
[339414407,1727599832630,-158.45,0.0001099,2]